[Event "Club Ajedrez Silla 60 Years 2022"]
[Site "Silla"]
[Date "2022.05.10"]
[Round "3.1"]
[White "Salvador Lopez, Daniel"]
[Black "Kotronias, Vasilios"]
[Result "0-1"]
[ECO "B13"]
[WhiteElo "2134"]
[BlackElo "2465"]
[Annotator "TA"]
[PlyCount "80"]
[EventDate "2022.05.09"]
[EventType "tourn"]
[EventCountry "ESP"]
[SourceTitle "playchess.com"]
[Source "ChessBase"]
[SourceQuality "1"]
[TimeControl "5400+30"]

{[%evp 9,80,2,11,6,10,6,10,-17,0,0,0,0,20,4,4,14,33,18,18,12,9,0,12,20,11,0,0,0,0,0,0,-7,0,-7,0,-44,-10,-42,-35,-35,0,-62,0,0,0,0,0,0,0,0,0,0,0,0,0,0,10,0,0,0,0,0,0,0,0,0,16,0,0,-29995,-29996,-29996,-29997]} 1. d4 {[%emt 0:00:15]} d5 {[%emt 0:00:03]} 2. Bf4 {[%emt 0:00:37]} c5 {[%emt 0:00:12]} 3. e3 {[%emt 0:00:30]} Nc6 {[%emt 0:00:20]} 4. Nf3 {[%emt 0:03:35]} cxd4 {[%emt 0:00:21]} 5. exd4 {[%emt 0:00:49]} Bg4 {[%emt 0:00:31]} 6. Be2 {[%emt 0:01:17] B13: Caro-Kann: Exchange Variation and Panov-Botvinnik Attack.} e6 {[%emt 0:00:46]} 7. c3 {[%emt 0:01:17]} Bd6 {[%emt 0:00:16]} 8. Ne5 {[%emt 0:02:23] The position is equal.} Bxe5 {[%emt 0:02:07]} 9. Bxe5 {[%emt 0:00:41]} Bxe2 {[%emt 0:03:01]} 10. Qxe2 {[%emt 0:00:09] [#]} f6 $146 {[%emt 0:03:33]} ({Predecessor:} 10... Nxe5 11. Qxe5 Nf6 12. Nd2 Qb6 13. Nb3 O-O 14. O-O Nd7 15. Qe3 a5 16. Nd2 Rfc8 {½-½ (23) Sapan,A-Mokhov,A (1759) Omsk 2013}) 11. Bg3 {[%emt 0:00:36]} Kf7 {[%emt 0:00:33]} 12. Nd2 {[%emt 0:00:52]} h5 {[%emt 0:05:24]} 13. O-O {[%emt 0:05:27]} Nge7 {[%emt 0:00:43]} 14. Rae1 {[%emt 0:05:13]} Qd7 {[%emt 0:00:11]} 15. Nb3 {[%emt 0:00:19][%cal Bd2b3,Bb3c1,Bc1d3][%mdl 32] [#] Hoping for Nc5.} b6 {[%emt 0:00:04] Against Nc5} 16. Nc1 {[%emt 0:00:35]} Nf5 {[%emt 0:05:15]} 17. Bf4 {[%emt 0:03:37]} g5 {[%emt 0:02:20]} 18. Bd2 {[%emt 0:00:12]} Nce7 {[%emt 0:03:32]} 19. Nd3 {[%emt 0:00:59][%cal Od2g5]} Ng6 {[%emt 0:00:05]} 20. f3 {[%emt 0:05:16]} Rh7 {[%emt 0:15:12] Active counter play!} 21. Nf2 {[%emt 0:06:49]} Rg8 {[%emt 0:00:26]} 22. Nh1 {[%emt 0:00:46]} Rhg7 {[%emt 0:05:11]} 23. Ng3 {[%emt 0:02:17]} Nxg3 {[%emt 0:03:13]} 24. hxg3 {[%emt 0:00:10]} Rh7 {[%emt 0:05:30]} 25. f4 {[%emt 0:02:16]} (25. Qd3 $11) 25... gxf4 {[%emt 0:00:15]} ({Black should play} 25... g4 $1 $15) 26. Bxf4 $11 {[%emt 0:00:10]} f5 {[%emt 0:00:29]} 27. Be5 {[%emt 0:04:03]} Nxe5 {[%emt 0:08:01]} 28. Qxe5 {[%emt 0:01:36][%cal Oc3c4]} h4 {[%emt 0:09:10]} 29. gxh4 {[%emt 0:05:22]} Rxh4 {[%emt 0:00:05]} 30. Rf4 {[%emt 0:00:45]} Rh5 {[%emt 0:01:03]} 31. Re2 {[%emt 0:01:48]} b5 {[%emt 0:03:49]} 32. Rf3 {[%emt 0:05:47]} Qe7 {[%emt 0:07:48]} 33. Rfe3 {[%emt 0:04:52][%cal Re5e6]} Re8 {[%emt 0:00:31]} 34. Rg3 {[%emt 0:02:08][%csl Gg3][%cal Re5g7]} Qf6 {[%emt 0:01:26] Inhibits Qg7+.} 35. Qc7+ {[%emt 0:02:45]} Re7 {[%emt 0:00:08]} 36. Qb8 {[%emt 0:00:28][%csl Gg3][%cal Rb8g8]} Qh8 {[%emt 0:00:08] Inhibits Qg8+.} 37. Qxb5 {[%emt 0:07:34]} Rh1+ {[%emt 0:00:21]} 38. Kf2 {[%emt 0:00:06]} Qh2 {[%emt 0:08:01] ( -> ...Qg1+). Really sharp!} ({Don't play} 38... Qh4 39. Qb8 Qh8 40. Qf4 $16 (40. Qxh8 Rxh8 41. Rge3 Ree8 $16)) 39. Qd3 $2 {[%emt 0:03:30][%mdl 8192] [#]} (39. Qb8 $11 Qg1+ 40. Kf3 Qf1+ 41. Ke3 Qc1+ 42. Rd2 (42. Kf3 Rf1+ 43. Rf2 Qd1+ 44. Kf4 e5+ 45. dxe5 Qd2+ 46. Kxf5 Rxf2+ 47. Rf3 Rxg2 48. e6+ Rxe6 49. Qf8+ Kxf8 50. Kxe6+ Ke8 51. Kd6 Qxb2 52. Re3+ Kf8 53. Rf3+ Kg7 54. Rh3 Rg6+ 55. Kxd5 Qg2+ 56. Kc4 Qxh3 57. Kc5 Qxc3+ 58. Kd5 Rg4 59. Ke6 Qc6+ 60. Ke7 Re4+ 61. Kd8 Re8#) 42... Qe1+ 43. Re2 Qc1+ 44. Rd2 (44. Kf3 $2 Rf1+ 45. Rf2 Qd1+ 46. Kf4 e5+ 47. dxe5 Qd2+ 48. Kxf5 Rxf2+ 49. Rf3 Rxg2 50. e6+ Rxe6 $19) 44... Qe1+ 45. Re2 Qc1+) 39... Qg1+ {[%emt 0:00:34]} 40. Kf3 {[%emt 0:01:14]} Qf1+ {[%emt 0:00:06] Weighted Error Value: White=0.29 (precise) /Black=0.06 (flawless)} 0-1

[Event "Club Ajedrez Silla 60 Years 2022"]
[Site "Silla"]
[Date "2022.05.10"]
[Round "3.2"]
[White "Petrov, Marian"]
[Black "Krasteva, Beloslava"]
[Result "1-0"]
[ECO "B20"]
[WhiteElo "2456"]
[BlackElo "2268"]
[Annotator "TA"]
[PlyCount "87"]
[EventDate "2022.05.09"]
[EventType "tourn"]
[EventCountry "ESP"]
[SourceTitle "playchess.com"]
[Source "ChessBase"]
[SourceQuality "1"]
[TimeControl "5400+30"]

{[%evp 9,87,-37,-29,-50,-26,-31,22,-29,-32,-42,-38,-40,-34,-43,-3,-61,-81,-83,-92,-265,-269,-269,-204,-225,-207,-214,-195,-218,-210,-279,-245,-305,-329,-312,-248,-556,-575,-570,-572,-520,-341,-283,-320,-528,-536,-543,0,0,0,0,0,0,0,0,1537,1374,29986,29987,29989,29990,29990,870,29984,910,840,831,810,801,1323,1293,1082,1007,1139,1139,1135,1054,1039,1082,1006,970]} 1. e4 {[%emt 0:00:07]} c5 {[%emt 0:00:26]} 2. g3 {[%emt 0:00:51]} d5 {[%emt 0:00:53][%cal Bd7d5,Bd5d4][%mdl 32]} 3. Nc3 {[%emt 0:05:37]} d4 {[%emt 0:01:37]} 4. Nce2 {[%emt 0:00:07]} Nc6 {[%emt 0:01:16]} 5. d3 {[%emt 0:00:07]} e5 {[%emt 0:04:06]} 6. Bg2 {[%emt 0:00:14] B20: Sicilian: Unusual White 2nd moves.} g5 {[%emt 0:06:12] [#]} 7. c3 $146 {[%emt 0:09:26]} ({Predecessor:} 7. h3 Be6 8. Nf3 h6 9. O-O Nge7 10. Ne1 Ng6 11. c3 Qd7 12. Kh2 Bd6 13. b4 cxb4 14. cxd4 exd4 {1-0 (57) Petras,M (2026)-Stolba,M (2050) Czech Republic 2016}) 7... Bd6 {[%emt 0:02:10]} ({Better is} 7... Be7 $15) 8. cxd4 {[%emt 0:00:08]} (8. Nf3 $142) 8... cxd4 $11 {[%emt 0:00:45]} (8... Nxd4 9. Nf3 $14) 9. a3 {[%emt 0:00:13]} h6 {[%emt 0:04:57]} 10. Nf3 {[%emt 0:13:39]} Nge7 {[%emt 0:04:52]} 11. b4 {[%emt 0:01:18]} b5 {[%emt 0:05:24]} 12. h4 {[%emt 0:00:39]} (12. Bd2 $1 $11) 12... g4 $36 {[%emt 0:03:18][%mdl 2048] Black has strong initiative.} 13. Nh2 {[%emt 0:02:06]} a5 {[%emt 0:04:46]} 14. O-O $2 {[%emt 0:10:02]} (14. bxa5 $17 {was called for.} Qxa5+ 15. Bd2) 14... axb4 $19 {[%emt 0:02:16]} 15. f3 {[%emt 0:00:08]} h5 {[%emt 0:09:48][%cal Rb4a3]} (15... bxa3 16. Nxg4 Ng8 17. Nxe5 Bxe5 18. f4 $17) 16. fxg4 {[%emt 0:01:05]} hxg4 {[%emt 0:02:17][%cal Rb4a3]} 17. Bg5 {[%emt 0:07:26]} bxa3 {[%emt 0:02:26] Hoping for ...Be6.} ({Not} 17... Rxa3 18. Rb1) 18. Nc1 {[%emt 0:03:35]} Qd7 {[%emt 0:05:18]} 19. Nb3 {[%emt 0:16:31]} b4 {[%emt 0:06:33]} 20. Rc1 {[%emt 0:05:19]} Na5 {[%emt 0:04:20]} 21. Rf6 {[%emt 0:03:57]} Nec6 {[%emt 0:06:24]} 22. Rf5 $2 {[%emt 0:02:25]} (22. Nxa5 {is a better chance.} Nxa5 23. Rxc8+ Rxc8 24. Nxg4) 22... Nxb3 {[%emt 0:06:23]} 23. Qxb3 {[%emt 0:05:09][%cal Oc1c6]} Qe6 {[%emt 0:01:48]} 24. Qc2 {[%emt 0:00:44]} Na5 {[%emt 0:05:16]} 25. Nxg4 {[%emt 0:02:20] Black must now prevent Bh3.} b3 {[%emt 0:00:39]} 26. Qd2 {[%emt 0:02:02]} (26. Qf2 {is the only way for White.} b2 27. Rf1) 26... b2 {[%emt 0:01:56]} 27. Nf6+ {[%emt 0:01:34]} Kd8 $2 {[%emt 0:03:21]} (27... Kf8 $19 28. Bh6+ Ke7 29. Nd5+ Qxd5 $3 {[%mdl 512]} 30. Bg5+ Ke8 31. Rxc8+ Rxc8 32. exd5 b1=Q+ 33. Rf1 Qb7 $1 34. Qxa5 Ra8) 28. Nd5+ $11 {[%emt 0:01:22]} Ke8 {[%emt 0:01:09]} 29. Rcf1 {[%emt 0:02:16] Threatens to win with Rf6. The board is on fire.} Qxd5 {[%emt 0:03:28]} 30. exd5 {[%emt 0:00:40]} Bxf5 {[%emt 0:00:00]} 31. Qf2 {[%emt 0:01:13]} b1=Q $4 {[%emt 0:01:19][%mdl 8192]} (31... Bg6 $11 32. Be4 (32. Qf6 $2 Kd7 $19) 32... Rf8) 32. Rxb1 $18 {[%emt 0:00:26]} Nb3 {[%emt 0:00:31]} 33. Qxf5 {[%emt 0:01:05]} a2 {[%emt 0:00:08]} 34. Rf1 {[%emt 0:00:46][%csl Gf1][%cal Rf5f7]} Rf8 {[%emt 0:00:55] [#]} 35. Qf6 {[%emt 0:01:05]} (35. Ra1 $142 $3 {[%mdl 512]} Rb8 (35... Nc1 36. Bh3) 36. Rxa2 Nc5 37. Bh3 Rg8 38. Ra7 f6 39. Qxf6 Rb1+ 40. Kh2) 35... a1=Q {[%emt 0:00:25]} 36. Rxa1 {[%emt 0:00:36]} (36. Qxd6 $142 f6 37. Qe6+ Kd8 38. d6 Qxf1+ 39. Bxf1 Ra7 {[#]} 40. Bh3 $1 Ra1+ 41. Kh2) 36... Rxa1+ {[%emt 0:00:21] White is clearly winning.} 37. Kh2 {[%emt 0:00:06][%csl Gg5][%cal Rf6d8]} Kd7 {[%emt 0:00:23] Against Qd8+} 38. Bh6 {[%emt 0:01:24]} Re8 {[%emt 0:00:48]} 39. Qxf7+ {[%emt 0:00:10]} Re7 {[%emt 0:00:03]} 40. Qg8 {[%emt 0:00:21] Bg5 is the strong threat.} Kc7 {[%emt 0:00:59]} 41. Bg5 {[%emt 0:00:25] A strong pair of Bishops.} Rd7 {[%emt 0:00:29]} 42. h5 {[%emt 0:00:48][%cal Bh4h5,Bh5h6,Bh6h7][%mdl 32]} Kb7 {[%emt 0:00:29]} 43. h6 {[%emt 0:00:46]} Ra8 {[%emt 0:00:33]} 44. h7 {[%emt 0:00:28] Weighted Error Value: White=0.46/Black=0.75} 1-0

[Event "Club Ajedrez Silla 60 Years 2022"]
[Site "Silla"]
[Date "2022.05.10"]
[Round "3.3"]
[White "Ilinca Ilinca, Felix Antonio"]
[Black "Granero Roca, Antonio"]
[Result "0-1"]
[ECO "B34"]
[WhiteElo "2165"]
[BlackElo "2340"]
[Annotator "TA"]
[PlyCount "72"]
[EventDate "2022.05.09"]
[EventType "tourn"]
[EventCountry "ESP"]
[SourceTitle "playchess.com"]
[Source "ChessBase"]
[SourceQuality "1"]
[TimeControl "5400+30"]

{[%evp 19,72,-68,-18,-4,0,0,0,0,21,0,0,0,0,-12,15,16,39,46,63,43,50,23,24,49,29,27,17,33,45,0,0,0,0,-16,0,-22,0,0,0,0,0,0,0,0,0,0,0,0,0,0,0,-12,0,-1254,-684]} 1. e4 {[%emt 0:00:03]} c5 {[%emt 0:00:32]} 2. Nf3 {[%emt 0:00:32]} Nc6 {[%emt 0:00:34]} 3. d4 {[%emt 0:01:01]} cxd4 {[%emt 0:00:13]} 4. Nxd4 {[%emt 0:00:58]} g6 {[%emt 0:00:41]} 5. Nc3 {[%emt 0:01:45]} Bg7 {[%emt 0:01:02]} 6. Be3 {[%emt 0:00:24]} Nf6 {[%emt 0:00:37]} 7. f3 {[%emt 0:03:28]} O-O {[%emt 0:01:01]} 8. Qd2 {[%emt 0:01:52]} d5 {[%emt 0:01:35]} 9. Nxc6 {[%emt 0:01:42]} bxc6 {[%emt 0:00:10]} 10. O-O-O {[%emt 0:01:47] 10.0-0-0 is better than 10.e5.} Be6 {[%emt 0:02:27]} ({Black should try} 10... Qc7 $1 $15) 11. exd5 $11 {[%emt 0:04:30] B34: Sicilian: Accelerated Dragon with 5 Nc3: sidelines.} Nxd5 {[%emt 0:06:15]} 12. Bd4 {[%emt 0:06:48]} Bxd4 {[%emt 0:17:33]} 13. Qxd4 {[%emt 0:00:19] The position is equal.} Qa5 {[%emt 0:00:08]} 14. Nxd5 {[%emt 0:12:35]} cxd5 {[%emt 0:01:27]} 15. a3 {[%emt 0:02:41]} Rab8 {[%emt 0:00:07] With the idea ...Rb7.} 16. h4 {[%emt 0:03:31][%cal Bh2h4,Bh4h5][%mdl 32] [#]} Qb6 $146 {[%emt 0:07:09]} ({Predecessor:} 16... Rfc8 17. Bd3 Qb6 18. Qxb6 Rxb6 19. h5 Rcb8 20. hxg6 hxg6 21. b3 Rc6 22. Kd2 Kg7 {1-0 (59) Nadzamova,V (1927)-Rejniak,Z (1650) Kouty nad Desnou 2017}) 17. h5 {[%emt 0:03:08]} Qxd4 {[%emt 0:01:20]} 18. Rxd4 {[%emt 0:00:27]} g5 {[%emt 0:00:03]} 19. h6 {[%emt 0:04:44]} f6 {[%emt 0:02:15]} 20. f4 {[%emt 0:02:38]} gxf4 {[%emt 0:03:10]} 21. Rxf4 {[%emt 0:02:44]} Bf7 {[%emt 0:01:04]} 22. Bd3 {[%emt 0:19:57]} Bg6 {[%emt 0:00:22]} 23. Rd1 {[%emt 0:00:39]} Rfd8 {[%emt 0:03:34]} 24. g4 {[%emt 0:01:19]} Rb6 {[%emt 0:02:30]} 25. Bf5 {[%emt 0:03:47]} Kf7 {[%emt 0:01:56]} 26. Rdf1 {[%emt 0:03:36]} Rg8 {[%emt 0:05:07]} 27. b3 {[%emt 0:01:07]} a6 {[%emt 0:04:25]} 28. R4f2 {[%emt 0:03:18]} e6 {[%emt 0:07:49]} 29. Bd3 {[%emt 0:00:34]} ({Of course not} 29. Bxg6+ Rxg6 30. g5 f5 $15) 29... Bxd3 {[%emt 0:00:30]} 30. Rxf6+ {[%emt 0:00:24]} Ke7 {[%emt 0:00:05]} 31. cxd3 {[%emt 0:01:09] And now Rf7+ would win.} Rxb3 {[%emt 0:00:09] KRR-KRR} 32. Rf7+ {[%emt 0:03:53]} Kd6 {[%emt 0:00:19]} 33. Rxh7 {[%emt 0:01:43]} Rxg4 {[%emt 0:01:42]} 34. Rh1 {[%emt 0:06:50]} Rxa3 {[%emt 0:02:03] [#] Strongly threatening ...Ra1+.} 35. Kb2 {[%emt 0:00:06] Against Ra1} Rxd3 {[%emt 0:00:11] aiming for ...Rg2+.} 36. Rg7 $2 {[%emt 0:00:49][%mdl 8192]} (36. Rb7 $11 Rg2+ 37. Kb1) 36... Rxg7 {[%emt 0:28:25] Weighted Error Value: White=0.34/Black=0.08 (flawless)} 0-1

[Event "Club Ajedrez Silla 60 Years 2022"]
[Site "Silla"]
[Date "2022.05.10"]
[Round "4.1"]
[White "Kotronias, Vasilios"]
[Black "Granero Roca, Antonio"]
[Result "1/2-1/2"]
[ECO "C92"]
[WhiteElo "2465"]
[BlackElo "2340"]
[Annotator "TA"]
[PlyCount "84"]
[EventDate "2022.05.09"]
[EventType "tourn"]
[EventCountry "ESP"]
[SourceTitle "playchess.com"]
[Source "ChessBase"]
[SourceQuality "1"]
[TimeControl "5400+30"]

{[%evp 30,84,0,0,20,16,12,0,51,49,69,42,67,60,69,39,29,31,135,131,129,111,158,109,158,62,119,69,148,154,145,124,163,127,116,-125,-46,-50,-46,-50,-38,-42,-42,-42,-42,-66,-66,-66,-66,-102,-102,-102,-102,-102,-102,-102,-102]} 1. e4 {[%emt 0:02:50]} e5 {[%emt 0:00:13]} 2. Nf3 {[%emt 0:00:05]} Nc6 {[%emt 0:00:21]} 3. Bb5 {[%emt 0:00:16]} a6 {[%emt 0:00:46]} 4. Ba4 {[%emt 0:00:07]} Nf6 {[%emt 0:00:22]} 5. O-O {[%emt 0:00:09]} b5 {[%emt 0:00:47]} 6. Bb3 {[%emt 0:00:04]} Be7 {[%emt 0:00:28]} 7. Re1 {[%emt 0:01:11]} O-O {[%emt 0:01:13]} 8. h3 {[%emt 0:00:17]} d6 {[%emt 0:00:36]} 9. c3 {[%emt 0:00:16]} Bb7 {[%emt 0:02:24]} 10. d4 {[%emt 0:00:21]} Re8 {[%emt 0:01:17]} 11. a4 {[%emt 0:02:13]} Bf8 {[%emt 0:02:57]} 12. Nbd2 {[%emt 0:01:11]} h6 {[%emt 0:01:49]} 13. Bc2 {[%emt 0:01:27]} exd4 {[%emt 0:02:42]} 14. cxd4 {[%emt 0:00:08]} Nb4 {[%emt 0:00:06]} 15. Bb1 {[%emt 0:00:07]} c5 {[%emt 0:00:19]} 16. d5 {[%emt 0:00:08]} g6 {[%emt 0:03:27] C92: Closed Ruy Lopez: 9...Be6, Karpov and Flohr-Zaitsev Variations.} 17. Nf1 {[%emt 0:11:49]} Bg7 {[%emt 0:01:02]} 18. Bd2 {[%emt 0:04:09]} Nd7 {[%emt 0:02:43] [#]} ({Black should play} 18... Nfxd5 $11 19. exd5 Rxe1 20. Nxe1 (20. Qxe1 Bxb2 21. Be4 Bxa1 $15) 20... Bxb2) 19. Qc1 $146 {[%emt 0:01:22]} ({Predecessor:} 19. Bc3 Ne5 20. Nxe5 Bxe5 21. Qd2 Qf6 22. axb5 axb5 23. Rxa8 Rxa8 24. Bxb4 cxb4 25. Qxb4 Bxb2 26. Qxb5 {1-0 (53) Faizrakhmanov,R (2480)-Manukyan,A (2106) Chess.com INT 2022}) 19... Kh7 {[%emt 0:05:54]} 20. a5 {[%emt 0:00:14]} Qf6 {[%emt 0:05:37]} 21. Bc3 {[%emt 0:00:31]} Qe7 {[%emt 0:00:07]} 22. Bxg7 {[%emt 0:06:18]} Kxg7 {[%emt 0:00:09]} 23. Ra3 {[%emt 0:00:43]} Ne5 {[%emt 0:03:25]} (23... Rad8 $14) 24. Nxe5 $16 {[%emt 0:02:57]} Qxe5 {[%emt 0:00:06]} 25. Nh2 {[%emt 0:02:14]} h5 {[%emt 0:06:38] Inhibits Ng4.} ({Black should try} 25... Qg5) 26. Nf3 {[%emt 0:00:34]} (26. Rd1 $142) 26... Qf6 {[%emt 0:03:07]} (26... Qe7 $142) 27. Rae3 {[%emt 0:05:55]} (27. Rd1 $16) 27... Rac8 {[%emt 0:02:54]} (27... Qf4 $14) 28. Qd2 {[%emt 0:02:17]} (28. Qc3 $16) 28... Rc7 {[%emt 0:01:27] [#]} (28... Qf4 $1 $14) 29. Qc3 $1 {[%emt 0:19:28]} Rce7 {[%emt 0:03:05]} 30. Kf1 {[%emt 0:03:07]} Rc7 {[%emt 0:03:36]} 31. Rd1 {[%emt 0:00:38]} Rce7 {[%emt 0:03:14]} 32. Ng5 $2 {[%emt 0:09:12] [#]} (32. Ke2 $16 {stays on course.}) 32... Nxd5 $1 {[%emt 0:05:18][%mdl 512]} 33. Qxf6+ $15 {[%emt 0:08:30]} Nxf6 {[%emt 0:16:29]} 34. Rxd6 {[%emt 0:00:09]} Nxe4 {[%emt 0:00:07]} (34... h4 {is more complex.} 35. Rb6 c4 36. Ke1 Rc7) 35. Bxe4 {[%emt 0:00:42]} Bxe4 {[%emt 0:00:09]} 36. Nxe4 {[%emt 0:00:05]} Rxe4 {[%emt 0:00:08]} 37. Rxa6 {[%emt 0:00:09] And now Rb6 would win.} Rxe3 {[%emt 0:02:19]} 38. fxe3 {[%emt 0:00:04]} Rxe3 $17 {[%emt 0:01:00] KR-KR} 39. Rb6 {[%emt 0:00:04]} Rb3 {[%emt 0:00:11] Black is better.} 40. a6 {[%emt 0:00:04] Threatens to win with a7.} Rxb2 {[%emt 0:00:17]} 41. a7 {[%emt 0:00:04]} Ra2 {[%emt 0:00:07] Hoping for ...b4.} 42. Rxb5 {[%emt 0:00:03]} Rxa7 {[%emt 0:00:07] Blacks defense is rewarded with a draw.  Weighted Error Value: White=0.34/Black=0.34} 1/2-1/2

[Event "Club Ajedrez Silla 60 Years 2022"]
[Site "Silla"]
[Date "2022.05.10"]
[Round "4.2"]
[White "Krasteva, Beloslava"]
[Black "Ilinca Ilinca, Felix Antonio"]
[Result "1/2-1/2"]
[ECO "A57"]
[WhiteElo "2268"]
[BlackElo "2165"]
[Annotator "TA"]
[PlyCount "120"]
[EventDate "2022.05.09"]
[EventType "tourn"]
[EventCountry "ESP"]
[SourceTitle "playchess.com"]
[Source "ChessBase"]
[SourceQuality "1"]
[TimeControl "5400+30"]

{[%evp 21,120,17,24,0,3,6,10,0,0,0,0,0,0,-24,0,-55,-37,-39,-51,-58,-44,-43,-18,-54,-34,-37,-9,-32,-35,-55,-54,-59,-59,-52,-4,-77,-31,-47,-16,-14,-3,-1,0,-3,0,0,0,-30,0,-14,-15,-18,-17,-102,-22,-25,0,0,0,0,19,-53,0,-189,-87,-75,0,0,0,0,0,0,0,0,0,0,-6,-5,0,0,0,0,0,0,0,0,13,8,22,0,0,0,0,0,0,0,0,0,0,0,0]} 1. d4 {[%emt 0:00:05]} Nf6 {[%emt 0:00:15]} 2. c4 {[%emt 0:00:04]} c5 {[%emt 0:00:24]} 3. d5 {[%emt 0:00:05]} b5 {[%emt 0:00:10]} 4. cxb5 {[%emt 0:01:41]} a6 {[%emt 0:00:20]} 5. b6 {[%emt 0:00:15]} e6 {[%emt 0:00:51]} 6. Nc3 {[%emt 0:00:47]} exd5 {[%emt 0:00:39]} 7. Nxd5 {[%emt 0:00:07]} Nxd5 {[%emt 0:00:28]} 8. Qxd5 {[%emt 0:00:03]} Nc6 {[%emt 0:00:09]} 9. Nf3 {[%emt 0:00:05]} Rb8 {[%emt 0:01:14]} 10. e4 {[%emt 0:00:51]} Be7 {[%emt 0:00:45]} 11. Bc4 {[%emt 0:00:37]} O-O {[%emt 0:00:35]} 12. Bd2 {[%emt 0:00:24] Inhibits Na5. A57: Benko/Volga Gambit.} Qxb6 {[%emt 0:01:19] [#]} 13. O-O $146 {[%emt 0:10:01]} ({Predecessor:} 13. Bc3 Nb4 14. Qd2 Qg6 15. O-O Bb7 16. Ne5 Qxe4 17. f3 Qh4 18. Qxd7 Bc8 19. Qd2 {0-1 (36) Notkin,M (2471)-Ghaem Maghami,E (2558) Playchess.com INT 2004}) 13... Qxb2 {[%emt 0:08:09]} 14. Rac1 {[%emt 0:07:13]} Qb6 {[%emt 0:06:06]} 15. Ng5 {[%emt 0:24:40][%cal Rg5f7]} Nd8 {[%emt 0:07:06]} 16. Qd3 {[%emt 0:09:43]} Ne6 {[%emt 0:24:17] Inhibits Bf4.} 17. Nf3 {[%emt 0:02:41]} Qc7 {[%emt 0:04:40]} 18. Bxa6 {[%emt 0:02:38]} (18. Bc3 $11) 18... Bxa6 $15 {[%emt 0:02:02]} 19. Qxa6 {[%emt 0:00:02]} Ra8 {[%emt 0:01:36]} 20. Qc4 {[%emt 0:00:33]} Qa7 {[%emt 0:02:28] Prevents a4.} 21. Rc2 {[%emt 0:04:19]} Rfc8 {[%emt 0:03:42]} 22. Rfc1 {[%emt 0:03:13]} Qa4 {[%emt 0:01:02]} 23. Qd5 {[%emt 0:01:20]} h6 {[%emt 0:03:47]} 24. h3 {[%emt 0:03:38]} Qc6 {[%emt 0:05:21]} 25. Qd3 {[%emt 0:01:08]} Ra4 {[%emt 0:00:48]} 26. Ne5 {[%emt 0:12:49][%csl LRc6,LRd7]} Qxe4 {[%emt 0:01:34]} 27. Qxd7 {[%emt 0:00:24]} Raa8 {[%emt 0:08:06]} (27... Rc7 $15 {is more appropriate.} 28. Qe8+ Kh7) 28. Nf3 {[%emt 0:03:06]} (28. Qxe7 $11 {keeps the balance.} Qxe5 29. Be3) 28... Bf6 {[%emt 0:02:19]} (28... Rc7 $17 29. Qb5 Rb7) 29. Be3 {[%emt 0:04:33]} Rc7 {[%emt 0:04:38]} (29... Rd8 $5 {[%cal Rd8d7]} 30. Qb5 Bd4 $15) 30. Qd1 {[%emt 0:02:47]} Rac8 {[%emt 0:02:53]} 31. Rc4 {[%emt 0:00:25]} Qa8 {[%emt 0:00:55]} 32. a4 {[%emt 0:00:25]} Qa6 {[%emt 0:00:47]} 33. Nd2 {[%emt 0:01:00]} Rd8 {[%emt 0:01:54]} 34. Qf3 {[%emt 0:01:23]} Rd3 {[%emt 0:00:54]} 35. Qe4 {[%emt 0:03:09]} Rcd7 {[%emt 0:00:40]} 36. Nf3 {[%emt 0:00:35]} R7d5 {[%emt 0:02:18]} 37. Kh2 {[%emt 0:01:19]} (37. Bxc5 $2 Rd1+ 38. Rxd1 Rxd1+ 39. Kh2 Nxc5 40. Rxc5 (40. Qe8+ $2 Kh7 $19) 40... Qd6+ 41. Re5 Bxe5+ 42. Qxe5 Qxe5+ 43. Nxe5 Ra1 $19) (37. Re1 $11) 37... Be7 {[%emt 0:00:40]} (37... Bb2 $17 38. R1c2 f5) 38. Ne1 $11 {[%emt 0:00:34]} Qd6+ {[%emt 0:00:36]} (38... f5 $5 39. Qf3 (39. Qxd3 $2 Rxd3 40. Nxd3 Qd6+ 41. Nf4 g5 $19) 39... Qd6+ 40. Kh1 Rd1 41. Rxd1 Rxd1 $15) 39. g3 {[%emt 0:00:18]} f5 {[%emt 0:00:42]} 40. Qf3 {[%emt 0:00:35]} Ra3 {[%emt 0:01:12] [#]} 41. Nc2 {[%emt 0:00:49]} ({White should play} 41. Bxc5 $1 $11 Rxf3 42. Bxd6 Rxf2+ 43. Kg1) 41... Rb3 {[%emt 0:00:39]} (41... Ng5 $1 $15 42. Qh5 Ra2) 42. Qe2 $2 {[%emt 0:00:32] [#]} (42. a5 $11) 42... Bf6 {[%emt 0:00:59]} (42... Bg5 $1 $19 {...f4 is the strong threat.} 43. Bxg5 Nxg5) 43. Ne1 $17 {[%emt 0:00:22]} g5 {[%emt 0:00:58]} (43... Be5 $17 {And now ...f4 would win.} 44. Ng2 Kh7) 44. Bxc5 $11 {[%emt 0:00:38] The position is equal.} Nxc5 {[%emt 0:00:17]} ({Much less strong is} 44... Rxc5 45. Rxc5 Nxc5 46. Qc4+ Kg7 47. Qxc5 Qxc5 48. Rxc5 $16) 45. Rxc5 {[%emt 0:00:26][%mdl 64] Remove Defender} Rxc5 {[%emt 0:00:13]} 46. Rxc5 {[%emt 0:00:14]} Qxc5 {[%emt 0:00:29]} 47. Qe6+ {[%emt 0:00:05]} Kg7 {[%emt 0:00:05]} 48. Qxb3 {[%emt 0:00:04] Black must now prevent Nd3.} Qxf2+ {[%emt 0:00:05][%mdl 4096] Endgame KQB-KQN} 49. Ng2 {[%emt 0:00:02]} f4 {[%emt 0:00:46]} 50. Qb7+ {[%emt 0:00:43]} Kg6 {[%emt 0:01:11]} 51. Qe4+ {[%emt 0:00:06]} Kg7 {[%emt 0:00:08]} 52. gxf4 {[%emt 0:01:10]} gxf4 {[%emt 0:00:13]} 53. Qxf4 {[%emt 0:00:08]} Qc5 {[%emt 0:00:19] Threatens to win with ...Be5.} 54. Qg4+ {[%emt 0:00:12]} ({But not} 54. Qg3+ Kh7 $14) 54... Kf7 {[%emt 0:00:33] Strongly threatening ...Be5+.} 55. Nf4 {[%emt 0:02:08] Hoping for Qe6+.} Qf2+ {[%emt 0:00:05]} 56. Kh1 {[%emt 0:00:08] White threatens Qg6+ and mate.} Qf1+ {[%emt 0:00:21]} 57. Kh2 {[%emt 0:00:08]} Qf2+ {[%emt 0:00:15]} 58. Kh1 {[%emt 0:00:20] Intending Qe6+ and mate.} Qf1+ {[%emt 0:00:08]} 59. Kh2 {[%emt 0:00:05]} Qf2+ {[%emt 0:00:08]} 60. Kh1 {[%emt 0:00:22] Qe6+ would kill now.} Qf1+ {[%emt 0:00:09] Weighted Error Value: White=0.24 (precise) /Black=0.18 (very precise)} 1/2-1/2